Cogmind - Beta 13 @@@ ROGUE MODE // 2024.06.14 @ 01:02:10 Player: lt_nd Result: Self-destructed Performance ------------- Evolutions (1) 500 Regions Visited (2) 400 Robots Destroyed (19) 95 Value Destroyed (339) 339 Prototype IDs (0) 0 Alien Tech Used (0) 0 Bonus (0) 0 TOTAL SCORE: 1334 Bonus ------- None Cogmind --------- Core Integrity 376/400 Matter 280/300 Energy 247/250 System Corruption 0% Temperature Cool (18) Movement Rolling (80) Location -9/Materials Parts ------- > --- POWER (1) -------- Ion Engine > --- PROPULSION (4) --- Wheel Wheel Wheel > --- UTILITY (2) ------ Heat Sink Hardened Light Armor Plating > --- WEAPON (2) ------- Small Laser > --- INVENTORY (5) ---- Compact Wheel Sensor Array Signal Interpreter Tractor Beam Peak State ------------ > --- POWER ------------ Ion Engine > --- PROPULSION ------- Wheel Wheel Wheel Compact Wheel > --- UTILITY ---------- Heat Sink Tractor Beam > --- WEAPON ----------- Small Laser Mining Laser > --- INVENTORY -------- Signal Interpreter [Rating: 9] Favorites ----------- Power Light Ion Engine Engine Light Ion Engine Propulsion Wheel Wheel Wheel Utility Tractor Beam Device Tractor Beam Protection Hardened Light Armor Plating Weapon Medium Laser Energy Gun Medium Laser Special Weapon Mining Laser Build | -11 -10 -9 ------- Run | Yrd Mat Mat Slots Evolved 2 | . . 2 Power . | . . . Propulsion 2 | . . 2 Utility . | . . . Weapon . | . . . Parts Attached 20 | 5 12 3 Power 3 | 1 2 . Engine 3 | 1 2 . Core . | . . . Reactor . | . . . Propulsion 10 | 2 6 2 Treads . | . . . Leg . | . . . Wheel 10 | 2 6 2 Hover . | . . . Flight . | . . . Utility 3 | . 2 1 Device 2 | . 2 . Storage . | . . . Processor . | . . . Hackware . | . . . Protection 1 | . . 1 Artifact . | . . . Weapon 4 | 2 2 . Energy Gun 3 | 2 1 . Energy Cannon . | . . . Ballistic Gun . | . . . Ballistic Cannon . | . . . Launcher . | . . . Special Weapon 1 | . 1 . Impact Weapon . | . . . Slashing Weapon . | . . . Piercing Weapon . | . . . Special Melee Weapon . | . . . Unidentified Prototypes . | . . . Parts Lost 7 | . 6 1 Power 1 | . 1 . Propulsion 3 | . 3 . Utility . | . . . Weapon 3 | . 2 1 Highest Loss Streak 4 | . 4 1 To Critical Strikes . | . . . Average Slot Usage (%) 76 | . 74 87 Engine 13 | . 13 11 Wheel 26 | . 25 33 Device 7 | . 6 12 Protection 1 | . . 9 Energy Gun 23 | . 25 11 Special Weapon 3 | . 2 10 Naked Turns . | . . . Heaviest Build 13 | 7 9 13 Greatest Support 46 | 32 32 46 Greatest Overweight (x) 2 | . 2 . Average Overweight (x) . | . . . Largest Inventory Capacity 5 | 5 5 5 Average Capacity 5 | 5 5 5 Most Carried 4 | 2 4 4 Average Carried 2 | 1 2 3 Final Capacity 5 | 5 5 5 Final Carried 4 | 2 3 4 Class Distribution -------------------- 72% | Mutant 27% | Scavenger-Mutant Dominant Class ---------------- Mutant | -10/Materials Scavenger-Mutant | -9/Materials Resources | -11 -10 -9 ----------- Run | Yrd Mat Mat Matter Collected 360 | 155 205 . Remotely 10 | . 10 . Salvage Created 737 | 22 715 . Parts 32 | 3 29 . Haulers Intercepted . | . . . Recyclers Shooed 2 | . 2 . Parts Field Recycled . | . . . Retrieved Matter . | . . . Parts Self-Destructed . | . . . Prevented . | . . . Kills | -11 -10 -9 ------- Run | Yrd Mat Mat Combat Hostiles Destroyed 8 | . 8 . Guns 5 | . 5 . Cannons 1 | . 1 . Classes Destroyed 5 | 1 4 . Worker 5 | . 5 . Builder 1 | . 1 . Tunneler 1 | 1 . . Recycler 4 | . 4 . Grunt 8 | . 8 . Best Kill Streak 3 | 1 3 . Combat Bots Only 2 | . 2 . Max Kills in Single Turn 1 | 1 1 . Gunslinging . | . . . Exploded . | . . . Melee . | . . . Uniques/NPCs Destroyed . | . . . Combat | -11 -10 -9 -------- Run | Yrd Mat Mat Hostile Shots Fired 48 | . 37 11 Missed 6 | . 5 1 Damage Taken 547 | . 404 143 Core 149 | . 125 24 Absorbed by Shields . | . . . Core Remaining (%) 75 | 100 50 . Volleys Fired 71 | 1 67 3 Largest 2 | 2 2 1 Hottest 100 | 100 100 40 Shots Fired 124 | 2 119 3 Gun 123 | 2 118 3 Cannon . | . . . Launcher . | . . . Special 1 | . 1 . Kinetic . | . . . Thermal 124 | 2 119 3 Explosive . | . . . Electromagnetic . | . . . Robot Hit Streak 15 | 1 15 2 Robot Miss Streak 3 | . 3 1 Penetration Max . | . . . Secondary Targets . | . . . Shots Hit Robots 81 | 1 78 2 Core Hits 33 | 1 31 1 Critical Kills . | . . . Critical Parts Destroyed . | . . . Critical Strikes 5 | . 5 . Burn 5 | . 5 . Melee Attacks . | . . . Impact . | . . . Slashing . | . . . Piercing . | . . . Sneak Attacks . | . . . Combat Hostiles . | . . . Follow-up Attacks . | . . . Damage Inflicted 1023 | 12 986 25 Guns 997 | 12 962 23 Cannons . | . . . Explosions . | . . . Melee . | . . . Ramming 2 | . . 2 Kinetic . | . . . Thermal 1021 | 12 986 23 Explosive . | . . . Electromagnetic . | . . . Impact . | . . . Slashing . | . . . Piercing . | . . . Highest Corruption . | . . . Average Corruption . | . . . Corruption Purged . | . . . Corruption Blocked . | . . . Overload Shots . | . . . Overflow Damage . | . . . Projectiles . | . . . Explosions . | . . . Melee . | . . . Knockbacks . | . . . Impact . | . . . Kinetic . | . . . Secondary . | . . . Self-Inflicted Damage 1 | . . 1 Shots . | . . . Rammed 1 | . . 1 Targets Rammed 1 | . . 1 Kicked . | . . . Crushed . | . . . Highest Temperature 331 | 39 331 . Average Temperature 111 | 24 112 . Received Heat Transfer 279 | . 228 51 Effects 2 | . 2 . Energy Bleed 1 | . 1 . Damage (minor) 1 | . 1 . Siege Activations . | . . . Robots Corrupted . | . . . Combat Hostiles . | . . . Parts Fried . | . . . Impact Corruptions . | . . . Robots Melted 2 | . 2 . Combat Hostiles 2 | . 2 . Parts Melted 4 | . 4 . Heat Transferred 3297 | 37 3210 50 Parts Sabotaged . | . . . Parts Stolen . | . . . Parts Stripped . | . . . Power Chain Reactions . | . . . Alert | -11 -10 -9 ------- Run | Yrd Mat Mat Peak Influence 218 | 5 218 73 Initial 28 | . 3 28 Average 59 | 3 69 45 Maximum Alert Level 1 | . 1 . Low Security (%) 98 | 100 98 100 Level 1 1 | . 1 . Level 2 . | . . . Level 3 . | . . . Level 4 . | . . . Level 5 . | . . . High Security . | . . . Max Security . | . . . Squads Dispatched 2 | . 2 . Investigation . | . . . Extermination . | . . . Reinforcement 2 | . 2 . Assault . | . . . Garrison . | . . . Intercept . | . . . Searches Triggered . | . . . Construction Impeded . | . . . Haulers Reinforced . | . . . Active Scanning Responses . | . . . Cargo Convoy Interrupts . | . . . Stealth | -11 -10 -9 --------- Run | Yrd Mat Mat Distress Signals . | . . . Communications Jammed . | . . . Distress Signals . | . . . Times Spotted 27 | . 21 6 Peak Tracking Total 5 | . 3 5 Tactical Retreats 3 | . 2 1 Traps | -11 -10 -9 ------- Run | Yrd Mat Mat Traps Triggered 1 | . 1 . Indirectly . | . . . Trap Hack Attempts . | . . . Triggered . | . . . Disarmed . | . . . Reprogrammed . | . . . Reused . | . . . Traps Extracted . | . . . Installed . | . . . Triggered . | . . . Machines | -11 -10 -9 ---------- Run | Yrd Mat Mat Machines Disabled . | . . . Max in Single Turn . | . . . Machines Repaired . | . . . Machines Dismantled . | . . . Machines Sabotaged . | . . . Overloaded Fab Kills . | . . . Hacking | -11 -10 -9 --------- Run | Yrd Mat Mat Machines Accessed . | . . . Terminals . | . . . Fabricators . | . . . Repair Stations . | . . . Recycling Units . | . . . Scanalyzers . | . . . Garrison Access . | . . . Total Hacks . | . . . Successful . | . . . Failed . | . . . Catastrophic . | . . . Database Lockouts . | . . . Manual . | . . . Terminals . | . . . Fabricators . | . . . Repair Stations . | . . . Recycling Units . | . . . Scanalyzers . | . . . Garrison Access . | . . . Terminal Hacks . | . . . Fabricator Hacks . | . . . Repair Station Hacks . | . . . Recycling Unit Hacks . | . . . Scanalyzer . | . . . Garrison Access Hacks . | . . . Unauthorized Hacks . | . . . Terminals . | . . . Fabricators . | . . . Repair Stations . | . . . Recycling Units . | . . . Scanalyzers . | . . . Garrison Access . | . . . Data Cores Recovered . | . . . Used . | . . . Hacking Detections . | . . . Full Trace Events . | . . . Feedback Events . | . . . Feedback Blocked . | . . . Robot Schematics Acquired . | . . . Robots Built . | . . . Authchips . | . . . Time . | . . . Total Robot Build Rating . | . . . Part Schematics Acquired . | . . . Parts Built . | . . . Authchips . | . . . Time . | . . . Total Part Build Rating . | . . . Parts Repaired . | . . . Time . | . . . Parts Recycled . | . . . Recycled Matter . | . . . Retrieved Matter . | . . . Retrieved Components . | . . . Parts Scanalyzed . | . . . Part Schematics Acquired . | . . . Parts Damaged . | . . . Bothacking | -11 -10 -9 ------------ Run | Yrd Mat Mat Used RIF Installer . | . . . Robots Hacked . | . . . Non-combat . | . . . Combat . | . . . Robot Hacks Applied . | . . . Relay Couplers Released . | . . . Fabnet Peak Effective % . | . . . Robots Rewired . | . . . Allies Hacked . | . . . Hacks Repelled . | . . . Allies | -11 -10 -9 -------- Run | Yrd Mat Mat Total Allies . | . . . Largest Group . | . . . Highest-Rated Group . | . . . Highest-Rated Ally . | . . . Total Orders . | . . . Ally Attacks . | . . . Total Damage . | . . . Kills . | . . . Allies Corrupted . | . . . Allies Melted . | . . . Intel | -11 -10 -9 ------- Run | Yrd Mat Mat Robot Analysis Total . | . . . Derelict Logs Recovered . | . . . Drone Launches . | . . . Drone Recoveries . | . . . Exploration | -11 -10 -9 ------------- Run | Yrd Mat Mat Turns Passed 924 | 88 715 121 Spaces Moved 567 | 76 363 128 Core 10 | 2 8 . Treads . | . . . Legs . | . . . Wheels 557 | 74 355 128 Hover . | . . . Flight . | . . . Fastest Speed 50 | 50 80 80 Average Speed 85 | 98 85 80 Slowest Speed 150 | 100 150 85 Overloaded Moves . | . . . Propulsion Burnouts . | . . . Robots Hopped . | . . . Cave-ins Triggered . | . . . Exploration Rate (%) 22 | 5 45 18 Regions Visited 2 Branch Regions . Pre-discovered Areas . | . . . Known Exits Taken . | . . . Unknown Exits Taken 2 | 1 1 . Scrap Searched . | . . . Spaces Dug . | . . . Terrain Destroyed . | . . . Melee . | . . . Projectile . | . . . AOE . | . . . Terrain Rammed . | . . . Walls Destroyed . | . . . Machines Disabled . | . . . Actions | -11 -10 -9 --------- Run | Yrd Mat Mat Total 872 | 85 643 144 Wait 205 | . 199 6 Move 565 | 75 362 128 Hop . | . . . Pick Up 7 | 3 3 1 Fast Attach 13 | 5 7 1 Attach 5 | . 3 2 Detach 2 | . . 2 Swap 2 | . 2 . Drop 1 | 1 . . Fire 71 | 1 67 3 Melee . | . . . Ram 1 | . . 1 Kick . | . . . Crush . | . . . Escape Stasis . | . . . Rewire . | . . . Trap . | . . . Miscellaneous . | . . . Route ------- -11/Scrapyard -10/Materials (discovered 2 exits: [*Mat] / [*Min]) -9/Materials History --------- Turn | Location | Event 15 | -11/Scrapyard | Discovered new exit (range 16) 89 | -11/Scrapyard | Entered Materials 305 | -10/Materials | Build established: Mutant 503 | -10/Materials | Discovered new exit (range 10) 711 | -10/Materials | Lost 4 parts (1p1n2w) 721 | -10/Materials | Discovered new exit (range 16) 804 | -10/Materials | Entered another Materials area 804 | -9/Materials | Evolved 2 slots: Propulsion x2 925 | -9/Materials | Self-destructed Last Messages --------------- 00701_ Acquired Wheel. 00721_ EXIT=FOUND 00725_ Triggered Blade Trap. 00725_ Massive razor-sharp blades shoot up from within the floor. 00725_ Wheel severed. 00725_ Ion Engine severed. 00728_ Acquired Ion Engine. 00730_ Acquired Wheel. 00736_ Acquired Signal Interpreter. 00743_ R-06 Scavenger destroyed. 00747_ Acquired 20 matter. 00747_ R-06 Scavenger collects Com. Wheel. PARAMETERS=PROPULSION+2 LOCATION=UNKNOWN GOAL=ESCAPE 00824_ Acquired Hrd. Light Armor Plating. 00891_ Slammed into W-16 Scout. 00903_ Acquired Sensor Array. 00916_ Mining Laser destroyed. Map ----- +----------------------------------------------------+ | ???????????????????????????????????????# """ # | | ???????????????????????????????????????# """ # | | ?????????????????????????????########### """ # | | ?????????????????????????????# ## """ / | | ?????????????????????????????# !!] ## # | | ?????????????????????????????# !!] ## ### | | ?????????????????????????????# ] ######+### | | ?????????????????????????????# #??# # T | | ?????????????????????????????# """ #### # | | ?????????????????????????????# """ + # | | ?????????????????????????????# """ #### # | | ?????????????????????????????# #??# # | | ???????????????????? ##+##???#/###/####??## ## | | ??????????????????? ???# +?????# ## | | ?????????????????? #### #?????# ## | | ?????????????????? +?????# ## | | ??????????????????????# #?????# ## | | ??????????????????????# g #?????# ###? | | ??????????????????????# #?????# #??? | | ??????????????????????# g #?????? ### | | ??????????????????????# #?????? | | ??????????????????????# #######+#######? | | ??????????????????????# #???# #?? | | ??????????????????????+ ##### ! #?? ### | | ??????????????????????# + #???+????? | | ??????????????????????# @##### !!! #????????? | | ??????????????????????# #???# !!! """ #????????? | | ??????????????????????# #???# !! """ #????????? | | ??????????????????????# #???# """ #????????? | | ??????????????????????# #???# #????????? | | ??????????????????????# #???###########????????? | | ?????????????????????? ??????????????????????? | | ????????????????????? ??????????????????????? | | ????????????????????? Y ??????????????????????? | | ???????????????????? ??????????????????????? | | ???????????????????? ??????????????????????? | | ???????????????????= ### ##??????????????????????? | | ???????????????????##??# ????????????????????????? | | ???????????????????????? ????????????????????????? | | ???????????????????????? ????????????????????????? | | ???????????????????????? ????????????????????????? | | ?????????????????????????????????????????????????? | | ?????????????????????????????????????????????????? | | ?????????????????????????????????????????????????? | | ?????????????????????????????????????????????????? | | ?????????????????????????????????????????????????? | | ?????????????????????????????????????????????????? | | ?????????????????????????????????????????????????? | | ?????????????????????????????????????????????????? | | ?????????????????????????????????????????????????? | +----------------------------------------------------+ Best States ------------- Heat Dissipation 38 Energy Generation 10 Energy Capacity 250 Matter Stores 300 Matter Capacity 300 Sight Range 16 Terrain Scan Density 10 Armor Coverage 150 Evasion (%) 44 Item Schematics ----------------- None Robot Schematics ------------------ None Fabricated ------------ Nothing Alien Tech Used ----------------- None Achievements -------------- It's Just You Challenges ------------ None Game ------ Seed CouplerMultinovaBooster Manual? 0 Play Time 00:10:14 Cumulative 5.0 hours Start 2024.06.14 @ 00:52:56 End 2024.06.14 @ 01:02:10 Sessions 1 Manual Loads 0 Difficulty Rogue Special Mode None Game No. 11 Rogue 11 Adventurer 0 Explorer 0 Win Type - Total 0 Types 0/0/0/0/0/0/0/0/0 Lore% 10 Gallery% 7 Achievement% 7 Wizard Run 0 Options --------- Layout 1 ASCII 0 Keyboard 1 Movement Numpad Keybinds 0 Fullscreen 1 Font 24/Smallcaps Map View 50x35 Zoom Use 0% Tactical HUD 1 Map Filters NONE Filters NONE Steam 1 RUN: 63cf18d2-2b25-400d-aea4-c9a9d54249fa